bitfinex/quotes_ETHUSD_20250721
["timestamp","ask_amount","ask_price","bid_price","bid_amount"]
[1753095933077,2.62620116,3807.8,3807.5,0.4583]
[1753095933078,6.72225732,3807.7,3807.5,0.001]
[1753095933274,6.72230481,3807.7,3807.5,0.001]
[1753095933575,2.62632629,3807.6,3807.5,0.001]
[1753095934278,3.09082629,3807.6,3807.5,0.001]
[1753095934483,2.62632629,3807.6,3807.5,0.001]
[1753095935760,5.62632629,3807.6,3807.5,0.001]
[1753095936347,6.89092629,3807.6,3807.5,1e-08]
[1753095936544,6.55759527,3807.5,3807.4,1e-08]
[1753095936760,6.42646425,3807.4,3807.3,1e-08]
[1753095936957,2.62694722,3806.7,3806.4,0.001]
[1753095937178,10.54904722,3806.7,3806.4,0.001]
[1753095937381,10.54904722,3806.7,3805.6,0.001]
[1753095937382,2.62708524,3806.5,3805.6,0.001]
[1753095937548,5.62763749,3805.7,3805.6,0.001]
[1753095937751,9.72263749,3805.7,3805.6,0.001]
[1753095939050,10.18713749,3805.7,3805.6,0.001]
[1753095940991,20.0010665,3805.7,3805.6,0.001]
[1753095941197,20.5510665,3805.7,3805.6,1e-08]
[1753095942415,23.6110665,3805.7,3805.6,1e-08]
[1753095942579,23.9110665,3805.7,3805.6,1e-08]
[1753095943923,38.4110665,3805.7,3805.6,1e-08]
[1753095945280,68.4110665,3805.7,3805.6,1e-08]
[1753095945517,38.4110665,3805.7,3805.6,1e-08]
[1753095945925,38.54828028,3805.7,3805.6,1e-08]
[1753095946596,28.93835127,3805.7,3805.6,1e-08]
[1753095946786,24.84335127,3805.7,3805.6,1e-08]
[1753095946987,28.93835127,3805.7,3805.6,1e-08]
[1753095947184,38.54828028,3805.7,3805.6,1e-08]
[1753095947385,38.54828028,3805.7,3804.0,0.0533]
[1753095947386,2.62874267,3804.1,3804.0,0.0533]
[1753095947687,6.72374267,3804.1,3804.0,0.0533]
[1753095948522,4.095,3804.1,3804.0,0.0533]
[1753095948723,3.0,3804.4,3804.0,0.5192]
[1753095949022,4.095,3804.3,3804.0,0.6504]
[1753095949201,4.095,3804.3,3804.1,3.09464267]
[1753095949397,0.1312,3804.7,3804.3,0.0523]
[1753095949596,4.095,3804.6,3804.4,0.4659]
[1753095949802,4.095,3804.6,3804.3,0.0523]
[1753095950004,4.095,3804.6,3804.5,0.4659]
[1753095950498,6.7233972,3804.6,3804.5,0.4659]
[1753095951013,6.7234166,3804.6,3804.3,0.0523]
[1753095951212,2.62853538,3804.4,3804.3,0.0523]
[1753095951391,6.85473538,3804.4,3804.3,0.0523]
[1753095951793,4.095,3804.4,3804.3,0.5182]
[1753095952122,6.72353538,3804.4,3804.3,0.0523]
[1753095952324,4.095,3804.4,3804.3,0.5182]
[1753095953020,4.095,3804.4,3804.3,0.0523]
[1753095953403,4.095,3804.4,3804.3,0.5182]
[1753095954722,6.72353538,3804.4,3804.1,0.1312]
[1753095954929,4.095,3804.4,3804.2,0.4659]
[1753095955103,4.094,3804.3,3804.2,0.59079753]
[1753095955304,4.094,3804.3,3804.1,2.62871512]
[1753095955506,4.094,3804.3,3804.2,0.1312]
[1753095955709,2.62821555,3804.9,3804.2,3.22572828]
[1753095955904,3.0,3804.7,3804.2,3.22572828]
[1753095956104,3.0,3804.7,3804.2,0.1312]
[1753095956301,4.094,3804.6,3804.3,0.4659]
[1753095956630,4.094,3804.6,3804.4,0.4659]
[1753095956837,0.1312,3805.0,3804.5,0.4659]
[1753095957043,4.094,3804.9,3804.6,0.0523]
[1753095957349,4.094,3804.9,3804.6,0.5182]
[1753095958045,3.0,3805.2,3804.7,3.09421558]
[1753095958203,3.0,3805.0,3804.6,0.0523]
[1753095958628,4.093,3804.9,3804.6,0.0523]
[1753095958826,4.093,3804.9,3804.6,0.5182]
[1753095959027,0.9189,3805.3,3804.5,0.1312]
[1753095959212,2.62830663,3804.8,3804.3,0.0523]
[1753095959417,4.093,3804.7,3804.3,0.6494]
[1753095959617,0.1312,3805.0,3804.3,0.1835]
[1753095959804,3.0,3804.5,3804.3,0.1835]
[1753095960254,7.093,3804.5,3804.3,0.1835]
[1753095960838,7.093,3804.5,3804.3,0.6494]
[1753095961410,7.093,3804.5,3804.4,0.4659]
[1753095961604,4.093,3804.5,3804.4,0.79370693]
[1753095961806,4.093,3804.5,3804.4,0.4659]
[1753095962353,0.4312,3805.7,3805.1,2.62800525]
[1753095962638,3.0,3805.5,3805.1,0.4659]
[1753095962804,2.62784835,3805.4,3804.5,0.4659]
[1753095963031,7.5922,3805.6,3804.9,0.1312]
[1753095963220,7.153,3805.6,3805.0,0.4659]
[1753095963426,7.092,3805.5,3805.1,0.1312]
[1753095963653,7.092,3805.5,3805.2,0.4659]
[1753095963862,7.092,3805.5,3805.1,0.1312]
[1753095964073,2.62784854,3805.4,3804.8,0.0523]
[1753095964238,7.2232,3805.5,3804.9,0.1312]
[1753095964917,9.85099697,3805.5,3804.9,0.1312]
[1753095965431,3.0,3805.4,3804.9,0.1312]
[1753095965748,3.0,3805.4,3804.4,2.62851537]
[1753095965749,2.62798276,3805.2,3804.4,2.62851477]
[1753095965960,6.72005456,3805.1,3804.5,0.1312]
[1753095966341,4.092,3805.1,3804.5,0.1312]
[1753095966657,3.0,3805.0,3804.5,0.1312]
[1753095966845,4.092,3804.9,3804.5,0.1312]
[1753095967020,4.092,3804.9,3804.5,2.75965961]
[1753095967221,4.092,3804.8,3804.6,0.4659]
[1753095967453,4.092,3804.7,3804.5,0.1312]
[1753095969025,0.5704,3805.2,3804.5,2.7596391]
[1753095969230,3.0,3805.0,3804.5,2.7596391]
[1753095969440,3.0,3805.0,3804.6,2.62839515]
[1753095969644,0.1312,3805.2,3804.7,0.4659]
[1753095969860,3.0,3805.0,3804.7,0.4659]
[1753095970069,0.1312,3805.2,3804.7,3.09422476]
[1753095970270,3.0,3805.0,3804.8,2.62822609]
[1753095970453,0.1312,3805.2,3804.8,2.6282533]
[1753095970772,3.1312,3805.5,3804.8,1.24259413]
[1753095970953,4.091,3805.4,3804.8,0.6494]
[1753095971261,4.091,3805.3,3804.8,0.6494]
[1753095971665,4.091,3805.3,3804.8,3.27764998]
[1753095971843,4.091,3805.3,3804.8,2.81174998]
[1753095972044,3.0,3805.2,3804.8,0.1835]
[1753095972934,3.0,3805.2,3804.8,2.8117585]
[1753095973134,0.1312,3805.5,3804.8,2.8117585]
[1753095973135,4.091,3805.1,3804.8,2.8117585]
[1753095973735,4.091,3805.1,3804.8,0.1835]
[1753095973935,4.091,3805.1,3804.8,2.81175707]
[1753095974180,4.091,3805.1,3804.8,0.1835]
[1753095974635,4.091,3805.1,3804.8,2.81175673]
[1753095974874,4.091,3805.1,3804.8,0.1835]
[1753095975835,3.0,3805.3,3804.8,0.1835]
[1753095976042,4.09,3805.2,3804.8,0.1835]
[1753095977567,4.09,3805.2,3804.8,2.81175299]
[1753095977773,4.09,3805.2,3804.8,0.1835]
[1753095978563,4.09,3805.1,3804.8,0.1835]
[1753095978941,4.5515,3805.1,3804.8,0.1312]
[1753095979353,4.09,3805.1,3804.8,0.1312]
[1753095979870,4.09,3805.1,3804.8,2.75944624]
[1753095980066,5.96846529,3805.3,3804.9,2.62818256]
[1753095980271,3.0,3805.1,3805.0,2.62811247]
[1753095980567,3.0,3805.1,3805.0,0.1312]
[1753095980568,4.089,3805.1,3805.0,0.1312]
[1753095982766,3.0,3805.5,3805.0,0.1312]
[1753095982942,4.088,3805.4,3805.0,0.1312]
[1753095983152,3.0,3805.3,3805.0,0.1312]
[1753095983883,4.088,3805.2,3805.0,0.1312]
[1753095984540,3.0,3805.3,3805.0,0.1312]
[1753095984736,4.088,3805.2,3805.0,0.1312]
[1753095986342,3.4615,3805.5,3805.0,0.1312]
[1753095986690,2.62801809,3805.2,3805.0,0.1312]
[1753095986980,3.0,3805.3,3804.8,0.1312]
[1753095986981,4.087,3805.1,3804.8,0.1312]
[1753095990474,4.087,3805.1,3804.8,2.7594556]
[1753095990884,3.4615,3805.3,3804.8,2.7594556]
[1753095991184,4.087,3805.2,3804.8,2.75941961]
[1753095991646,4.087,3805.2,3804.9,2.6281886]
[1753095992081,3.0,3805.3,3805.0,2.62810841]
[1753095992285,3.0,3805.3,3805.0,2.75930841]
[1753095992286,4.086,3805.2,3805.0,2.75930841]
[1753095992586,4.086,3805.1,3805.0,0.1312]
[1753095993656,4.086,3805.1,3805.0,2.75931468]
[1753095994302,4.086,3805.1,3805.0,0.1312]
[1753095995590,3.0,3805.3,3805.0,0.1312]
[1753095995800,0.002,3805.6,3805.1,0.07858051]
[1753095996008,0.002,3805.6,3805.5,2.68007558]
[1753095996303,0.002,3806.4,3806.3,2.62722328]
[1753095996499,0.002,3806.4,3806.3,2.81072328]
[1753095996697,0.002,3806.4,3806.3,3.27859551]
[1753095997968,0.002,3806.4,3806.3,3.25232328]
[1753095998163,0.002,3806.4,3806.3,3.80718621]
[1753095998365,0.002,3806.4,3806.3,0.1835]
[1753095998592,0.002,3806.4,3806.3,0.1312]
[1753095999377,0.4635,3806.4,3806.1,0.1312]
[1753095999602,4.084,3806.3,3806.1,0.1312]
[1753096000095,4.5455,3806.3,3806.1,0.1312]
[1753096003631,3.09318276,3805.2,3804.8,0.001]
[1753096003913,4.5482,3805.1,3804.8,0.1322]
[1753096004114,7.17625584,3805.1,3804.8,0.1322]
[1753096004349,0.4652,3805.0,3804.8,0.001]
[1753096005569,3.42438996,3804.9,3804.8,0.001]
[1753096005775,6.88958996,3804.9,3804.8,0.001]
[1753096009243,3.42584267,3804.1,3804.0,0.001]
[1753096009547,10.50784267,3804.1,3804.0,0.001]
[1753096009841,10.97304267,3804.1,3804.0,0.001]
[1753096010700,6.89104267,3804.1,3804.0,0.001]
[1753096010899,11.52304267,3804.1,3804.0,1e-08]
[1753096011143,1.3773,3803.3,3802.4,0.001]
[1753096011427,6.45714878,3802.5,3802.4,0.001]
[1753096011603,10.53914878,3802.5,3802.4,0.001]
[1753096011800,6.92234878,3802.5,3802.4,0.001]
[1753096012037,11.00434878,3802.5,3802.4,0.001]
[1753096012936,6.92234878,3802.5,3802.4,0.001]
[1753096013124,11.00434878,3802.5,3802.4,0.001]
[1753096013930,11.55434878,3802.5,3802.4,0.001]
[1753096014235,6.92234878,3802.5,3802.4,0.001]
[1753096014401,11.00434878,3802.5,3802.4,0.001]
[1753096015053,11.55434878,3802.5,3802.4,0.001]
[1753096016527,7.47234878,3802.5,3802.4,0.001]
[1753096016730,11.55534878,3802.5,3802.4,0.001]
[1753096017053,7.47234878,3802.5,3802.4,0.001]
[1753096017259,11.55434878,3802.5,3802.4,0.001]
[1753096017812,6.92234878,3802.5,3802.4,0.001]
[1753096018264,11.00534878,3802.5,3802.4,0.001]
[1753096018421,20.0699288,3802.5,3802.4,0.001]
[1753096018616,20.6199288,3802.5,3802.4,0.001]
[1753096019169,20.6199288,3802.5,3802.4,1e-08]
[1753096020043,6.45714878,3802.5,3802.4,1e-08]
[1753096020345,10.54014878,3802.5,3802.4,1e-08]
[1753096020548,11.00534878,3802.5,3802.4,1e-08]
[1753096021236,20.6199288,3802.5,3802.4,1e-08]
[1753096022154,35.1199288,3802.5,3802.4,1e-08]
[1753096023554,38.1799288,3802.5,3802.4,1e-08]
[1753096025351,29.11534878,3802.5,3802.4,1e-08]
[1753096026862,25.03234878,3802.5,3802.4,1e-08]
[1753096027269,29.11534878,3802.5,3802.4,1e-08]
[1753096028330,24.48234878,3802.5,3802.4,1e-08]
[1753096028724,28.56534878,3802.5,3802.4,1e-08]
[1753096028924,2.63033961,3801.8,3801.6,0.40175402]
[1753096029126,9.71340957,3801.7,3801.2,0.0523]
[1753096029327,3.0,3801.5,3801.2,0.0523]
[1753096029655,4.083,3801.4,3801.2,0.0523]
[1753096029954,2.76162038,3801.7,3801.2,0.0523]
[1753096030137,3.0,3801.5,3801.2,0.61698838]
[1753096030337,4.083,3801.4,3801.2,0.61698838]
[1753096030549,4.083,3801.3,3801.2,0.61698838]
[1753096030747,3.0,3801.9,3801.3,2.63063612]
[1753096031060,2.76140693,3802.0,3801.4,3.08950533]
[1753096031262,0.1312,3802.0,3801.5,2.63048585]
[1753096031476,0.1312,3802.0,3801.7,2.63034446]
[1753096031631,4.083,3802.3,3802.0,0.0523]
[1753096031823,4.083,3802.4,3802.1,0.4838]
[1753096032027,4.083,3802.4,3802.2,3.06154555]
[1753096032269,4.083,3802.4,3802.3,0.4315]
[1753096032434,0.4406,3803.2,3802.1,0.0523]
[1753096032634,2.62976175,3802.7,3802.1,0.0523]
[1753096032880,4.083,3802.6,3802.1,0.0523]
[1753096033172,0.4406,3803.2,3802.2,0.4315]
[1753096033329,2.629576,3802.9,3802.3,2.62997153]
[1753096033529,3.0,3802.7,3802.2,3.0615371]
[1753096033763,3.0,3802.7,3802.3,0.4315]
[1753096034073,3.0,3803.4,3802.4,0.4315]
[1753096034273,3.0,3802.8,3802.4,0.4315]
[1753096034558,4.082,3802.7,3802.5,0.4315]
[1753096034740,3.0,3802.9,3802.5,0.4315]
[1753096034928,4.082,3802.8,3802.5,0.4315]
[1753096035369,3.0,3803.1,3802.5,2.99337081]
[1753096035546,2.62935875,3803.3,3802.6,3.11357962]
[1753096035747,3.0,3803.1,3802.7,2.62965574]
[1753096035953,3.0,3803.4,3802.8,0.4315]
[1753096036159,0.4406,3803.7,3802.8,0.4315]
[1753096036160,2.62906316,3803.7,3802.8,0.4315]
[1753096036330,2.62882201,3804.0,3802.9,0.0523]
[1753096036534,2.62882201,3804.0,3803.1,2.62937397]
[1753096036535,7.142,3803.9,3803.1,2.62937397]
[1753096036735,7.142,3803.9,3803.0,0.4315]
[1753096036736,3.0,3803.6,3803.0,0.4315]
[1753096036943,3.0,3803.6,3803.0,3.06100153]
[1753096037126,4.082,3803.5,3803.1,0.4315]
[1753096037327,4.082,3803.4,3803.3,2.62925162]
[1753096037535,4.082,3803.4,3803.3,3.06075162]
[1753096037746,6.314,3804.1,3803.5,2.62912182]
[1753096037946,4.082,3804.0,3803.5,3.06062182]
[1753096038146,3.0,3803.9,3803.6,2.68138611]
[1753096038370,3.0,3803.9,3803.6,3.11288611]
[1753096038574,6.314,3804.1,3803.6,3.11288611]
[1753096038575,6.314,3804.1,3803.8,2.62894853]
[1753096038874,4.081,3804.0,3803.9,0.4315]
[1753096039171,4.081,3804.0,3803.9,3.06038088]
[1753096039366,0.002,3804.1,3803.9,3.06038088]
[1753096039557,0.002,3804.1,3804.0,0.4315]
[1753096040469,0.002,3804.1,3804.0,3.11261177]
[1753096040638,0.002,3804.1,3804.0,3.74681256]
[1753096041674,0.002,3804.1,3804.0,3.87801256]
[1753096044073,0.002,3804.1,3804.0,3.90430067]
[1753096044668,0.002,3804.1,3804.0,0.81770079]
[1753096044878,0.002,3804.1,3804.0,0.1835]
[1753096047173,0.002,3804.1,3804.0,0.615]
[1753096047372,0.002,3804.1,3804.0,3.24381177]
[1753096047577,0.002,3804.1,3804.0,3.27009988]
[1753096047773,0.002,3804.1,3804.0,3.86000253]
[1753096048091,0.002,3804.1,3804.0,1.20490265]
[1753096048255,0.002,3804.1,3804.0,3.83371442]
[1753096048455,0.002,3804.1,3804.0,1.20490265]
[1753096048651,0.002,3804.1,3804.0,3.83371442]
[1753096048962,0.002,3804.1,3804.0,1.20490265]
[1753096049984,0.002,3804.1,3804.0,3.83371442]
[1753096050900,0.002,3804.1,3804.0,0.77340265]
[1753096051104,0.002,3804.1,3804.0,0.1835]
[1753096051600,0.002,3804.1,3804.0,3.24381177]
[1753096051993,0.002,3804.1,3804.0,0.615]
[1753096052502,0.002,3804.1,3804.0,3.24381177]
[1753096053585,0.002,3804.1,3804.0,3.27009988]
[1753096053892,0.002,3804.1,3804.0,3.86000466]
[1753096055298,0.002,3804.1,3804.0,3.83371655]
[1753096057070,0.002,3804.1,3804.0,11.83371655]
[1753096058691,0.002,3804.1,3804.0,11.40221655]
[1753096058971,0.002,3804.1,3804.0,8.1312]
[1753096060906,0.4426,3804.1,3804.0,8.1312]
[1753096061072,6.07134267,3804.1,3804.0,8.0]
[1753096061278,6.87204267,3804.1,3804.0,8.0]
[1753096062705,7.00324267,3804.1,3804.0,8.0]
[1753096066430,0.002,3804.1,3804.0,8.0]
[1753096066714,0.002,3804.1,3804.0,8.9312]
[1753096067015,0.002,3804.1,3804.0,8.1312]
[1753096068385,0.002,3804.1,3804.0,8.0]
[1753096068699,3.002,3804.1,3804.0,8.0]
[1753096069292,4.078,3804.1,3804.0,8.0]
[1753096069516,7.077,3804.1,3804.0,8.0]
[1753096070189,7.5157,3804.1,3804.0,8.0]
[1753096070392,3.4407,3804.1,3804.0,8.0]
[1753096070592,7.5157,3804.1,3804.0,8.0]
[1753096071590,4.077,3804.1,3804.0,8.0]
[1753096073017,0.002,3804.1,3804.0,8.0]
[1753096073204,10.14444267,3804.1,3804.0,8.0]
[1753096073522,10.97274267,3804.1,3804.0,8.0]
[1753096073697,8.344,3804.1,3804.0,8.0]
[1753096074622,10.97274267,3804.1,3804.0,8.0]
[1753096076293,8.344,3804.1,3804.0,8.0]
[1753096076494,10.97274267,3804.1,3804.0,8.0]
[1753096076694,14.03274267,3804.1,3804.0,8.0]
[1753096080094,14.03174267,3804.1,3804.0,8.0]
[1753096080823,9.95774267,3804.1,3804.0,8.0]
[1753096081134,14.03174267,3804.1,3804.0,8.0]
[1753096081592,9.95774267,3804.1,3804.0,8.0]
[1753096081794,14.03174267,3804.1,3804.0,8.0]
[1753096083545,9.95774267,3804.1,3804.0,8.0]
[1753096083837,14.58174267,3804.1,3804.0,8.0]
[1753096084134,29.08174267,3804.1,3804.0,8.0]
[1753096084840,25.00774267,3804.1,3804.0,8.0]
[1753096085006,24.45774267,3804.1,3804.0,8.0]
[1753096085198,14.03074267,3804.1,3804.0,8.0]
[1753096085408,0.7649,3803.1,3802.5,0.0523]
[1753096085610,0.7649,3803.1,3801.6,0.001]
[1753096085611,5.97091145,3802.6,3801.9,0.0523]
[1753096085811,7.14154878,3802.5,3801.9,0.0523]
[1753096086027,2.63003361,3802.3,3801.7,0.0523]
[1753096086247,4.073,3802.2,3801.7,0.0523]
[1753096086601,4.073,3802.2,3801.6,0.001]
[1753096086602,2.63027946,3801.9,3801.6,0.001]
[1753096086837,4.073,3801.8,3801.6,0.001]
[1753096088736,3.0,3802.0,3801.6,0.001]
[1753096088939,4.073,3801.9,3801.6,0.001]
[1753096089906,2.63014811,3802.1,3801.6,0.001]
[1753096090258,4.074,3802.0,3801.6,3.09495313]
[1753096090550,4.074,3802.0,3801.7,0.4635]
[1753096090904,4.074,3801.9,3801.7,0.4635]
[1753096091125,2.63000868,3802.3,3801.7,3.09388313]
[1753096091311,3.0,3802.1,3801.8,0.4635]
[1753096091512,3.0,3801.9,3801.8,0.4635]
[1753096091744,4.073,3801.9,3801.6,0.001]
[1753096091954,4.073,3801.9,3801.6,2.63141263]
[1753096092152,3.0,3802.4,3801.6,2.63141263]
[1753096092153,0.4276,3802.9,3801.7,0.4411]
[1753096092338,0.4276,3802.9,3801.8,2.63029065]
[1753096092339,3.0,3802.4,3801.8,2.63029065]
[1753096092540,4.073,3802.3,3801.9,2.63026018]
[1753096092714,4.073,3802.2,3801.9,0.4411]
[1753096092909,3.0,3802.5,3802.0,0.4411]
[1753096093146,2.62979359,3802.6,3802.0,3.07128241]
[1753096093147,3.0,3802.6,3802.0,3.07128241]
[1753096093342,3.0,3802.3,3802.0,3.64930406]
[1753096093649,4.074,3802.2,3802.1,0.4411]
[1753096094012,4.074,3802.2,3801.6,0.001]
[1753096094353,4.5016,3802.2,3801.6,0.001]
[1753096094508,6.70405727,3802.2,3801.6,0.001]
[1753096094711,6.70407722,3802.2,3801.6,0.001]
[1753096094910,2.63013863,3802.1,3801.6,0.001]
[1753096095135,5.63021264,3802.0,3801.6,0.001]
[1753096095319,4.073,3801.9,3801.6,0.001]
[1753096095524,4.5006,3801.9,3801.6,0.1322]
[1753096095947,4.073,3801.9,3801.6,0.001]
[1753096096953,3.0,3802.0,3801.6,0.001]
[1753096097130,4.073,3801.8,3801.6,0.1322]
[1753096097455,5.63040218,3801.7,3801.6,0.1322]
[1753096097627,6.88360218,3801.7,3801.6,0.001]
[1753096098282,6.88360218,3801.7,3801.6,0.08318836]
[1753096100669,10.49360218,3801.7,3801.6,0.08318836]
[1753096101260,9.94360218,3801.7,3801.6,0.08320332]
[1753096102426,10.49360218,3801.7,3801.6,0.08320332]
[1753096103257,9.94360218,3801.7,3801.6,0.08320332]
[1753096103657,14.01660218,3801.7,3801.6,0.08320332]
[1753096104271,12.76340218,3801.7,3801.6,0.08320332]
[1753096104482,13.19100218,3801.7,3801.6,0.08320332]
[1753096104625,9.94950218,3801.7,3801.6,0.08320332]
[1753096104822,14.02250218,3801.7,3801.6,0.08320332]
[1753096106242,9.94950218,3801.7,3801.6,0.08320332]
[1753096106443,14.02250218,3801.7,3801.6,0.08320332]
[1753096106672,13.19100218,3801.7,3801.6,0.08320332]
[1753096109431,12.76340218,3801.7,3801.6,0.08320332]
[1753096109844,12.76340218,3801.7,3801.6,0.08320145]
[1753096110271,13.19100218,3801.7,3801.6,0.08320145]
[1753096110689,13.95710218,3801.7,3801.6,0.08320145]
[1753096113376,19.93573689,3801.7,3801.6,0.08320145]
[1753096114153,15.86273689,3801.7,3801.6,0.08320145]
[1753096114371,19.93573689,3801.7,3801.6,0.08320145]
[1753096114996,13.95710218,3801.7,3801.6,0.08320145]
[1753096116586,8.69040218,3801.7,3801.6,0.08320145]
[1753096116798,12.76340218,3801.7,3801.6,0.08320145]
[1753096117498,19.16963689,3801.7,3801.6,0.08320145]
[1753096118492,12.76240218,3801.7,3801.6,0.08320145]
[1753096118852,13.19000218,3801.7,3801.6,0.08320145]
[1753096122288,9.11800218,3801.7,3801.6,0.08320145]
[1753096122489,13.21200218,3801.7,3801.6,0.08320145]
[1753096122692,12.76240218,3801.7,3801.6,0.08320145]
[1753096122994,13.21200218,3801.7,3801.6,0.08320145]
[1753096123492,13.97580218,3801.7,3801.6,0.08320145]
[1753096124070,5.63074818,3801.2,3801.1,1e-08]
[1753096124254,12.96578289,3801.2,3801.1,1e-08]
[1753096124462,13.41538289,3801.2,3801.1,1e-08]
[1753096124891,13.41538289,3801.2,3800.0,0.001]
[1753096124892,6.43790969,3800.1,3800.0,0.001]
[1753096125078,16.4875444,3800.1,3800.0,0.001]
[1753096125400,16.9371444,3800.1,3800.0,0.001]
[1753096125784,10.95850969,3800.1,3800.0,0.001]
[1753096125973,10.50890969,3800.1,3800.0,0.001]
[1753096126173,3.0,3799.8,3798.5,0.02632618]
[1753096126371,4.072,3799.7,3798.2,5.97863471]
[1753096126571,3.0,3799.3,3798.7,2.63244783]
[1753096126772,3.0,3799.3,3798.6,2.6324931]
[1753096126773,7.072,3799.3,3798.6,2.6324931]
[1753096126973,3.0,3799.3,3799.0,2.63226131]
[1753096127173,3.0,3799.3,3798.9,2.63232591]
[1753096127387,0.7592,3800.5,3799.2,2.63208335]
[1753096127659,0.7592,3800.5,3799.4,2.6319465]
[1753096127660,3.0,3800.0,3799.4,2.6319465]
[1753096127886,7.072,3800.0,3799.4,2.6319465]
[1753096128064,7.072,3800.0,3799.5,3.10062511]
[1753096128260,3.0,3799.7,3799.3,0.73190833]
[1753096128678,7.072,3799.9,3799.4,0.4687]
[1753096128981,3.0,3800.2,3799.3,2.63199863]
[1753096129182,2.63150799,3800.2,3799.5,0.4687]
[1753096129388,9.70357493,3800.1,3799.5,0.4687]
[1753096129616,3.0,3799.9,3799.5,0.4687]
[1753096129798,2.63153031,3800.1,3799.6,0.4687]
[1753096130006,3.0,3799.9,3799.6,0.4687]
[1753096130308,3.0,3799.9,3799.5,2.63192279]
[1753096130483,3.0,3799.9,3799.6,0.4687]
[1753096130683,2.63143755,3800.3,3799.7,0.4687]
[1753096130932,0.7811,3800.8,3799.7,3.67372416]
[1753096131084,6.70309427,3800.7,3799.7,1.04195211]
[1753096131423,6.70311326,3800.7,3799.9,2.63158399]
[1753096131624,3.0,3800.5,3799.9,2.63158399]
[1753096131783,3.0,3800.3,3799.9,2.63158399]
[1753096131977,3.0,3800.3,3799.9,0.4687]
[1753096132212,3.0,3800.3,3800.0,0.4687]
[1753096132600,3.0,3800.3,3799.4,2.63199452]
[1753096132601,4.072,3800.3,3799.4,2.63199452]
[1753096132811,6.314,3801.1,3799.6,2.63185598]
[1753096133026,2.63111594,3800.7,3800.0,2.63153319]
[1753096133330,4.072,3800.7,3800.1,2.63145126]
[1753096133494,3.0,3800.6,3800.2,2.6314285]
[1753096133695,3.0,3800.6,3800.2,3.1001285]
[1753096134080,3.0,3800.6,3800.3,0.1312]
[1753096134814,3.0,3800.6,3800.4,0.4687]
[1753096134981,3.7757,3801.3,3800.4,0.58627621]
[1753096135183,3.0,3800.5,3799.3,0.4687]
[1753096135493,5.63152358,3800.1,3799.0,3.1009455]
[1753096135713,2.63176537,3799.8,3799.1,2.63219508]
[1753096136017,2.6317971,3799.7,3799.1,2.63219508]
[1753096136206,2.6317971,3799.7,3799.1,3.2055184]
[1753096136404,2.6317971,3799.7,3799.1,0.57332332]
[1753096136608,2.63207364,3799.3,3798.6,3.10120909]
[1753096136808,2.63207364,3799.3,3798.6,0.4687]
[1753096137009,2.63200075,3799.4,3798.7,2.6324745]
[1753096137215,2.63200075,3799.4,3798.7,2.65879929]
[1753096137415,2.63200075,3799.4,3798.8,0.57601082]
[1753096137602,2.63194385,3799.5,3798.8,3.20842041]
[1753096137798,3.0,3799.6,3798.9,0.4687]
[1753096138104,3.0,3799.6,3799.0,2.63227165]
[1753096138494,3.0,3799.6,3799.1,3.10083693]
[1753096138694,2.63193637,3799.5,3798.9,0.0263234]
[1753096138893,2.63193637,3799.5,3798.8,3.10108395]
[1753096139085,2.63194508,3799.5,3798.8,3.10108395]
[1753096139290,3.0,3799.4,3798.9,2.63233827]
[1753096139491,3.0,3799.4,3798.9,3.10103827]
[1753096140090,3.0,3799.4,3798.9,2.63233827]
[1753096140292,3.0,3799.4,3799.0,0.4687]
[1753096140514,2.63194227,3799.5,3798.8,3.20574131]
[1753096140713,2.63194227,3799.5,3798.8,3.20574519]
[1753096141193,3.0,3799.3,3798.8,3.20574519]
[1753096141394,5.63206886,3799.3,3798.8,0.57335761]
[1753096141807,3.0,3799.3,3798.8,0.57335761]
[1753096142231,3.0,3799.3,3798.8,3.20576354]
[1753096142432,3.0,3799.3,3798.9,2.63232773]
[1753096142596,3.0,3799.3,3798.9,0.4687]
[1753096142797,3.0,3799.3,3799.0,0.4687]
[1753096143530,3.0,3799.3,3799.0,3.1009681]
[1753096143829,3.0,3799.3,3798.8,0.57335761]
[1753096143997,3.0,3799.3,3798.8,3.2057194]
[1753096144198,3.0,3799.3,3798.9,2.63231521]
[1753096144401,3.0,3799.3,3798.9,3.10101521]
[1753096144931,2.63193855,3799.5,3798.9,3.10101521]
[1753096144932,3.0,3799.5,3799.0,2.63226029]
[1753096145133,3.06,3799.6,3798.9,2.65865616]
[1753096145310,3.0,3799.5,3799.1,0.1312]
[1753096145509,3.4496,3799.5,3799.1,0.1312]
[1753096145822,5.63213308,3799.2,3799.1,0.1312]
[1753096146398,2.6323077,3799.0,3798.5,4.072]
[1753096146623,2.6323077,3799.0,3798.7,0.1312]
[1753096146935,2.63235336,3798.9,3798.7,0.1312]
[1753096147091,2.63235336,3798.9,3798.1,0.4697]
[1753096147092,4.2578,3798.9,3798.1,0.001]
[1753096147297,2.63261756,3798.6,3798.1,0.001]
[1753096147496,4.072,3798.6,3798.1,0.001]
[1753096147692,6.7045512,3798.6,3798.1,0.001]
[1753096147905,3.4496,3798.5,3798.1,0.001]
[1753096148115,2.63271951,3798.4,3798.1,0.001]
[1753096148428,2.63277555,3798.3,3798.1,0.001]
[1753096148606,0.4496,3798.3,3798.1,0.001]
[1753096149138,3.0,3798.5,3798.1,0.001]
[1753096149322,3.0,3798.6,3798.1,0.001]